lending/lending_fUSD_20250303
["ID","MTS","AMOUNT","RATE_DAILY","PERIOD"]
[355200005,1741002637594,-390.67736286,0.00014889,2]
[355200006,1741002637606,-500.0,0.00014889,2]
[355200007,1741002637617,-500.0,0.00014889,2]
[355200008,1741002637629,-500.0,0.00014889,2]
[355200009,1741002637641,-500.0,0.00014889,2]
[355200010,1741002637654,-7.29491288,0.00014889,2]
[355200011,1741002637668,-492.70508712,0.00014889,2]
[355200012,1741002637679,-579.23,0.00014889,2]
[355200013,1741002637691,-155.31,0.00014889,2]
[355200014,1741002637703,-151.0,0.00014889,2]
[355200016,1741002637714,-109.75905845,0.00014889,2]
[355200019,1741002637728,-390.24094155,0.00014889,2]
[355200021,1741002637739,-500.0,0.00014889,2]
[355200023,1741002637750,-500.0,0.00014889,2]
[355200025,1741002637762,-500.0,0.00014889,2]
[355200027,1741002637773,-500.0,0.00014889,2]
[355200029,1741002637785,-500.0,0.00014889,2]
[355200031,1741002637796,-500.0,0.00014889,2]
[355200033,1741002637807,-500.0,0.00014889,2]
[355200036,1741002637819,-500.0,0.00014889,2]
[355200038,1741002637830,-165.388712,0.00014889,2]
[355200040,1741002637841,-500.0,0.00014889,2]
[355200041,1741002637853,-500.0,0.00014889,2]
[355200042,1741002637864,-151.0,0.00014889,2]
[355200043,1741002637876,-481.76718742,0.00014889,2]
[355200044,1741002637887,-500.0,0.00014889,2]
[355200045,1741002637898,-500.0,0.00014889,2]
[355200047,1741002637910,-500.0,0.00014889,2]
[355200048,1741002637922,-500.0,0.00014889,2]
[355200050,1741002637934,-184.59,0.00014889,2]
[355200051,1741002637945,-500.0,0.00014889,2]
[355200052,1741002637957,-151.0,0.00014889,2]
[355200053,1741002637968,-261.324289,0.00014889,2]
[355200054,1741002637980,-500.0,0.00014889,2]
[355200055,1741002637992,-500.0,0.00014889,2]
[355200056,1741002638003,-500.0,0.00014889,2]
[355200057,1741002638015,-108.7043388,0.00014889,2]
[355200060,1741002639502,-391.2956612,0.00014889,2]
[355200061,1741002639512,-153.309909,0.00014889,2]
[355200062,1741002639521,-151.0,0.00014889,2]
[355200063,1741002639531,-151.0,0.00014889,2]
[355200064,1741002639541,-500.0,0.00014889,2]
[355200065,1741002639550,-157.41570896,0.00014889,2]
[355200066,1741002639797,-342.58429104,0.00014889,2]
[355200067,1741002639812,-638.04,0.00014889,2]
[355200068,1741002639823,-151.0,0.00014889,2]
[355200069,1741002639833,-296.250307,0.00014889,2]
[355200070,1741002639843,-461.01,0.00014889,2]
[355200071,1741002639852,-151.0,0.00014889,2]
[355200072,1741002639862,-151.0,0.00014889,2]
[355200073,1741002639871,-151.0,0.00014889,2]
[355200074,1741002639880,-180.550607,0.00014889,2]
[355200075,1741002639889,-500.0,0.00014889,2]
[355200076,1741002639900,-500.0,0.00014889,2]
[355200077,1741002639909,-500.0,0.00014889,2]
[355200078,1741002639918,-538.09,0.00014889,2]
[355200079,1741002639928,-1980.27,0.00014889,2]
[355200080,1741002639938,-151.0,0.00014889,2]
[355200081,1741002639947,-151.0,0.00014889,2]
[355200082,1741002639958,-500.0,0.00014889,2]
[355200083,1741002639967,-151.0,0.00014889,2]
[355200084,1741002639977,-500.0,0.00014889,2]
[355200086,1741002639986,-500.0,0.00014889,2]
[355200088,1741002639996,-820.41,0.00014889,2]
[355200090,1741002640005,-275.25,0.00014889,2]
[355200092,1741002640014,-500.0,0.00014889,2]
[355200094,1741002640023,-151.0,0.00014889,2]
[355200096,1741002640032,-500.0,0.00014889,2]
[355200098,1741002640041,-199.5,0.00014889,2]
[355200100,1741002640051,-151.0,0.00014889,2]
[355200101,1741002640061,-5542.99,0.00014889,2]
[355200102,1741002640070,-151.0,0.00014889,2]
[355200103,1741002640079,-499.7,0.00014889,2]
[355200104,1741002640088,-13011.43074816,0.00014889,2]
[355200105,1741002640100,-1787.55805162,0.00014889,2]
[355200106,1741002640116,-4547.68120022,0.00014889,2]
[355200107,1741002640125,-1289.67,0.00014889,2]
[355200108,1741002640135,-500.0,0.00014889,2]
[355200109,1741002640144,-670.22,0.00014889,2]
[355200110,1741002640154,-296.173608,0.00014889,2]
[355200111,1741002640163,-261.0622653,0.00014889,2]
[355200112,1741002640174,-270.6677347,0.00014889,2]
[355200113,1741002640183,-1126.35,0.00014889,2]
[355200114,1741002640193,-500.0,0.00014889,2]
[355200115,1741002640202,-304.29,0.00014889,2]
[355200116,1741002640211,-691.06,0.00014889,2]
[355200117,1741002640225,-153.332903,0.00014889,2]
[355200118,1741002640234,-7715.30882914,0.00014889,2]
[355200119,1741002640267,-492.63117086,0.00014889,2]
[355200120,1741002640276,-500.0,0.00014889,2]
[355200121,1741002640285,-168.70023821,0.00014889,2]
[355200122,1741002640298,-12.16581379,0.00014889,2]
[355200123,1741002640307,-460.03918622,0.00014889,2]
[355200124,1741002640318,-39.96081378,0.00014889,2]
[355200125,1741002640327,-247.86218621,0.00014889,2]
[355200134,1741002642614,-252.13781379,0.00014889,2]
[355200135,1741002642625,-500.0,0.00014889,2]
[355200136,1741002642634,-208.165235,0.00014889,2]
[355200137,1741002642645,-500.0,0.00014889,2]
[355200138,1741002642655,-500.0,0.00014889,2]
[355200139,1741002642665,-500.0,0.00014889,2]
[355200140,1741002642674,-500.0,0.00014889,2]
[355200141,1741002642684,-501.59,0.00014889,2]
[355200142,1741002642693,-1024.2,0.00014889,2]
[355200143,1741002642703,-341.06,0.00014889,2]
[355200144,1741002642713,-500.0,0.00014889,2]
[355200145,1741002642723,-500.0,0.00014889,2]
[355200146,1741002642732,-599.44,0.00014889,2]
[355200147,1741002642742,-5895.19,0.00014889,2]
[355200148,1741002642752,-500.0,0.00014889,2]
[355200149,1741002642762,-500.0,0.00014889,2]
[355200150,1741002642771,-500.0,0.00014889,2]
[355200151,1741002642781,-500.0,0.00014889,2]
[355200152,1741002642791,-151.0,0.00014889,2]
[355200153,1741002642801,-553.08,0.00014889,2]
[355200154,1741002642811,-151.0,0.00014889,2]
[355200155,1741002642821,-500.0,0.00014889,2]
[355200156,1741002642830,-151.0,0.00014889,2]
[355200157,1741002642840,-12389.01,0.00014889,2]
[355200158,1741002642849,-500.0,0.00014889,2]
[355200159,1741002642859,-563.21,0.00014889,2]
[355200160,1741002642869,-500.0,0.00014889,2]
[355200161,1741002642878,-500.0,0.00014889,2]
[355200162,1741002642888,-500.0,0.00014889,2]
[355200163,1741002642898,-151.0,0.00014889,2]
[355200164,1741002642909,-280.592696,0.00014889,2]
[355200165,1741002642919,-500.0,0.00014889,2]
[355200166,1741002642929,-500.0,0.00014889,2]
[355200167,1741002642938,-500.0,0.00014889,2]
[355200168,1741002642948,-500.0,0.00014889,2]
[355200169,1741002642958,-500.0,0.00014889,2]
[355200170,1741002642967,-500.0,0.00014889,2]
[355200171,1741002642976,-578.71,0.00014889,2]
[355200172,1741002642986,-500.0,0.00014889,2]
[355200173,1741002642995,-13418.0,0.00014889,2]
[355200174,1741002643005,-563.52,0.00014889,2]
[355200175,1741002643015,-500.0,0.00014889,2]
[355200176,1741002643025,-500.0,0.00014889,2]
[355200177,1741002643034,-500.0,0.00014889,2]
[355200178,1741002643044,-19750.65,0.00014889,2]
[355200179,1741002643054,-500.0,0.00014889,2]
[355200180,1741002643064,-500.0,0.00014889,2]
[355200181,1741002643074,-500.0,0.00014889,2]
[355200182,1741002643084,-595.68,0.00014889,2]
[355200183,1741002643094,-500.0,0.00014889,2]
[355200184,1741002643103,-500.0,0.00014889,2]
[355200186,1741002643113,-500.0,0.00014889,2]
[355200188,1741002643123,-500.0,0.00014889,2]
[355200190,1741002643132,-25008.36,0.00014889,2]
[355200192,1741002643141,-519.55,0.00014889,2]
[355200194,1741002643151,-500.0,0.00014889,2]
[355200196,1741002643161,-500.0,0.00014889,2]
[355200197,1741002643170,-500.0,0.00014889,2]
[355200199,1741002643179,-500.0,0.00014889,2]
[355200201,1741002643189,-500.0,0.00014889,2]
[355200202,1741002643198,-500.0,0.00014889,2]
[355200203,1741002643207,-500.0,0.00014889,2]
[355200204,1741002643217,-500.0,0.00014889,2]
[355200205,1741002643229,-590.99,0.00014889,2]
[355200206,1741002643238,-502.20164235,0.00014889,2]
[355200207,1741002643247,-7743.05,0.00014889,2]
[355200208,1741002643256,-279.698322,0.00014889,2]
[355200209,1741002643266,-500.0,0.00014889,2]
[355200210,1741002643276,-156.821122,0.00014889,2]
[355200211,1741002643285,-1000.0,0.00014889,2]
[355200212,1741002643294,-500.0,0.00014889,2]
[355200213,1741002643305,-4386.26356233,0.00014889,2]
[355200214,1741002643322,-7923.89643767,0.00014889,2]
[355200215,1741002643332,-500.0,0.00014889,2]
[355200216,1741002643341,-830.688848,0.00014889,2]
[355200217,1741002643350,-830.688848,0.00014889,2]
[355200218,1741002643359,-830.688848,0.00014889,2]
[355200219,1741002643368,-9126.76201833,0.00014889,2]
[355200220,1741002643379,-2154.11798167,0.00014889,2]
[355200221,1741002643388,-766.35201833,0.00014889,2]
[355200222,1741002643409,-500.0,0.00014888,2]
[355200223,1741002643419,-64.33682967,0.00014889,2]
[355200224,1741002643428,-830.688848,0.00014889,2]
[355200225,1741002643438,-830.688848,0.00014889,2]
[355200226,1741002643447,-500.0,0.00014889,2]
[355200227,1741002643456,-683.66,0.00014889,2]
[355200228,1741002643466,-500.0,0.00014889,2]
[355200229,1741002643475,-500.0,0.00014889,2]
[355200230,1741002643485,-500.0,0.00014889,2]
[355200231,1741002643495,-500.0,0.00014889,2]
[355200232,1741002643505,-6802.89,0.00014889,2]
[355200233,1741002643514,-500.0,0.00014889,2]
[355200234,1741002643524,-6104.75,0.00014889,2]
[355200235,1741002643534,-507.95,0.00014889,2]
[355200236,1741002643544,-500.0,0.00014889,2]
[355200237,1741002643555,-500.0,0.00014889,2]
[355200238,1741002643564,-578.39,0.00014889,2]
[355200239,1741002643573,-500.0,0.00014889,2]
[355200240,1741002643582,-500.0,0.00014889,2]
[355200241,1741002643592,-578.98,0.00014889,2]
[355200242,1741002643601,-151.0,0.00014889,2]
[355200243,1741002643610,-151.0,0.00014889,2]
[355200244,1741002643619,-151.0,0.00014889,2]
[355200245,1741002643629,-156.057799,0.00014889,2]
[355200246,1741002643638,-696.81,0.00014889,2]
[355200247,1741002643647,-151.0,0.00014889,2]
[355200248,1741002643658,-151.0,0.00014889,2]
[355200249,1741002643667,-151.0,0.00014889,2]
[355200250,1741002643676,-281.224992,0.00014889,2]
[355200251,1741002643685,-295.40652965,0.00014889,2]
[355200252,1741002643695,-500.0,0.0001489,2]
[355200253,1741002643705,-200.0,0.0001489,2]
[355200254,1741002643714,-500.0,0.0001489,2]
[355200255,1741002643725,-500.0,0.0001489,2]
[355200256,1741002643734,-500.0,0.0001489,2]
[355200257,1741002643744,-151.0,0.0001489,2]
[355200258,1741002643753,-500.0,0.0001489,2]
[355200259,1741002643763,-151.0,0.0001489,2]
[355200260,1741002643772,-151.0,0.0001489,2]
[355200261,1741002643782,-500.0,0.0001489,2]
[355200262,1741002643792,-500.0,0.0001489,2]
[355200263,1741002643801,-500.0,0.0001489,2]
[355200264,1741002643811,-500.0,0.0001489,2]
[355200265,1741002643819,-500.0,0.0001489,2]
[355200266,1741002643828,-500.0,0.0001489,2]
[355200267,1741002643838,-500.0,0.0001489,2]
[355200268,1741002643847,-500.0,0.0001489,2]
[355200269,1741002643856,-500.0,0.0001489,2]
[355200270,1741002643866,-151.0,0.0001489,2]
[355200271,1741002643876,-151.0,0.0001489,2]
[355200272,1741002643885,-500.0,0.0001489,2]
[355200273,1741002643894,-500.0,0.0001489,2]
[355200274,1741002643903,-500.0,0.0001489,2]
[355200275,1741002643913,-500.0,0.0001489,2]
[355200276,1741002643922,-500.0,0.0001489,2]
[355200277,1741002643932,-151.0,0.0001489,2]
[355200278,1741002643941,-500.0,0.0001489,2]
[355200279,1741002643950,-500.0,0.0001489,2]
[355200280,1741002643959,-500.0,0.0001489,2]
[355200281,1741002643969,-500.0,0.0001489,2]
[355200282,1741002643978,-500.0,0.0001489,2]
[355200283,1741002643987,-500.0,0.0001489,2]
[355200284,1741002643997,-500.0,0.0001489,2]
[355200285,1741002644007,-500.0,0.0001489,2]
[355200286,1741002644016,-500.0,0.0001489,2]
[355200287,1741002644026,-151.0,0.0001489,2]
[355200288,1741002644037,-151.0,0.0001489,2]
[355200289,1741002644046,-151.0,0.0001489,2]
[355200290,1741002644055,-153.413819,0.0001489,2]
[355200291,1741002644065,-500.0,0.0001489,2]
[355200292,1741002644074,-500.0,0.0001489,2]
[355200293,1741002644083,-500.0,0.0001489,2]
[355200294,1741002644093,-500.0,0.0001489,2]
[355200295,1741002644102,-500.0,0.0001489,2]
[355200296,1741002644111,-500.0,0.0001489,2]
[355200297,1741002644120,-500.0,0.0001489,2]
[355200298,1741002644130,-500.0,0.0001489,2]
[355200299,1741002644139,-500.0,0.0001489,2]
[355200300,1741002644148,-500.0,0.0001489,2]
[355200301,1741002644158,-500.0,0.0001489,2]
[355200302,1741002644167,-500.0,0.0001489,2]
[355200303,1741002644176,-500.0,0.0001489,2]
[355200304,1741002644186,-500.0,0.0001489,2]
[355200305,1741002644195,-500.0,0.0001489,2]
[355200306,1741002644205,-154.952524,0.0001489,2]
[355200307,1741002644214,-500.0,0.0001489,2]
[355200308,1741002644227,-500.0,0.0001489,2]
[355200309,1741002644236,-151.0,0.0001489,2]
[355200310,1741002644246,-151.0,0.0001489,2]
[355200311,1741002644255,-500.0,0.0001489,2]
[355200312,1741002644264,-151.0,0.0001489,2]
[355200313,1741002644273,-151.0,0.0001489,2]
[355200314,1741002644282,-500.0,0.0001489,2]
[355200315,1741002644291,-402.78,0.0001489,2]
[355200316,1741002644303,-406.26,0.0001489,2]
[355200317,1741002644312,-500.0,0.0001489,2]
[355200318,1741002644321,-500.0,0.0001489,2]
[355200319,1741002644331,-489.75981168,0.0001489,2]
[355200321,1741002645415,-2282.41,0.00014888,2]
[355200322,1741002645425,-74.52018832,0.0001489,2]
[355200323,1741002645435,-500.0,0.0001489,2]
[355200324,1741002645444,-500.0,0.0001489,2]
[355200325,1741002645453,-164.85201155,0.0001489,2]
[355200326,1741002645463,-316.4,0.0001489,2]
[355200327,1741002645472,-500.0,0.0001489,2]
[355200328,1741002645482,-152.8,0.0001489,2]
[355200329,1741002645491,-500.0,0.0001489,2]
[355200330,1741002645500,-500.0,0.0001489,2]
[355200331,1741002645509,-500.0,0.0001489,2]
[355200332,1741002645518,-500.0,0.0001489,2]
[355200333,1741002645528,-500.0,0.0001489,2]
[355200334,1741002645537,-500.0,0.0001489,2]
[355200335,1741002645547,-500.0,0.0001489,2]
[355200336,1741002645556,-500.0,0.0001489,2]
[355200337,1741002645566,-151.0,0.0001489,2]
[355200338,1741002645576,-181.85,0.0001489,2]
[355200339,1741002645585,-151.0,0.0001489,2]
[355200340,1741002645595,-154.279389,0.0001489,2]
[355200341,1741002645604,-214.825862,0.0001489,2]
[355200344,1741002645938,-285.174138,0.0001489,2]
[355200345,1741002645948,-500.0,0.0001489,2]
[355200346,1741002645957,-500.0,0.0001489,2]
[355200347,1741002645966,-500.0,0.0001489,2]
[355200348,1741002645976,-500.0,0.0001489,2]
[355200349,1741002645986,-500.0,0.0001489,2]
[355200350,1741002645995,-268.84,0.0001489,2]
[355200351,1741002646005,-500.0,0.0001489,2]
[355200352,1741002646015,-45.80138681,0.0001489,2]
[355200353,1741002646026,-435.489995,0.0001489,2]
[355200354,1741002646049,-18.70861819,0.0001489,2]
[355200355,1741002646058,-500.0,0.0001489,2]
[355200356,1741002646068,-494.58,0.0001489,2]
[355200357,1741002646077,-384.32,0.0001489,2]
[355200358,1741002646086,-500.0,0.0001489,2]
[355200359,1741002646095,-500.0,0.0001489,2]
[355200360,1741002646105,-564.61,0.0001489,2]
[355200361,1741002646114,-500.0,0.0001489,2]
[355200362,1741002646123,-1544.81,0.0001489,2]
[355200363,1741002646132,-500.0,0.0001489,2]
[355200364,1741002646142,-500.0,0.0001489,2]
[355200365,1741002646151,-500.0,0.0001489,2]
[355200366,1741002646161,-527.7,0.0001489,2]
[355200367,1741002646170,-393.08414139,0.0001489,2]
[355200368,1741002646179,-170.58246547,0.0001489,2]
[355200369,1741002646191,-329.41753453,0.0001489,2]
[355200370,1741002646200,-500.0,0.0001489,2]
[355200371,1741002646209,-127.86411174,0.0001489,2]
[355200372,1741002646220,-372.13588826,0.0001489,2]
[355200373,1741002646232,-261.76,0.0001489,2]
[355200374,1741002646241,-201.28725619,0.0001489,2]
[355200375,1741002646252,-39.97020181,0.0001489,2]
[355200376,1741002646261,-398.73941903,0.0001489,2]
[355200377,1741002646273,-101.26058097,0.0001489,2]
[355200378,1741002646282,-1346.34004965,0.0001489,2]
[355200379,1741002646293,-1475.33808343,0.0001489,2]
[355200380,1741002646313,-336.61,0.0001489,2]
[355200381,1741002646324,-1841.71186692,0.0001489,2]
[355200382,1741002646333,-500.0,0.0001489,2]
[355200383,1741002646342,-508.11316867,0.0001489,2]
[355200384,1741002646351,-569.86664759,0.0001489,2]
[355200385,1741002646360,-500.0,0.0001489,2]
[355200386,1741002646369,-249.965385,0.0001489,2]
[355200387,1741002646379,-500.0,0.0001489,2]
[355200388,1741002646387,-516.15577885,0.0001489,2]
[355200389,1741002646397,-151.0,0.0001489,2]
[355200390,1741002646407,-500.0,0.0001489,2]
[355200391,1741002646417,-151.0,0.0001489,2]
[355200392,1741002646426,-500.0,0.0001489,2]
[355200393,1741002646435,-500.0,0.0001489,2]
[355200394,1741002646445,-500.0,0.0001489,2]
[355200395,1741002646454,-151.0,0.0001489,2]
[355200396,1741002646464,-151.0,0.0001489,2]
[355200397,1741002646473,-500.0,0.0001489,2]
[355200398,1741002646483,-157.174369,0.0001489,2]
[355200399,1741002646492,-830.688848,0.0001489,2]
[355200400,1741002646501,-830.688848,0.0001489,2]
[355200401,1741002646510,-830.688848,0.0001489,2]
[355200402,1741002646519,-830.688848,0.0001489,2]
[355200403,1741002646528,-151.0,0.0001489,2]
[355200404,1741002646542,-151.0,0.0001489,2]
[355200405,1741002646551,-172.0,0.0001489,2]
[355200406,1741002646560,-25991.33557293,0.0001489,2]
[355200407,1741002646572,-8481.63125903,0.0001489,2]
[355200408,1741002646583,-48459.36409331,0.0001489,2]
[355200409,1741002646594,-34436.59401,0.0001489,2]
[355200410,1741002646606,-22545.5625134,0.0001489,2]
[355200411,1741002649662,510.72026854,0.000148,2]
[355200412,1741002796305,500.0,0.00014774,2]
[355200413,1741002855629,187.0,0.000148,2]
[355200414,1741002906426,171.19,0.00014031,2]
[355200415,1741002906612,155.0,0.000148,3]
[355200416,1741002958836,209.64347157,0.00014791,2]
[355200417,1741003008702,250.0,0.00013,2]
[355200418,1741003035644,1148.27842,0.0001476,2]
[355200419,1741003207414,155.0,0.000148,3]
[355200420,1741003218754,2000.0,0.00014009,2]
[355200421,1741003223930,155.33313985,0.00014788,2]
[355200422,1741003228615,155.33313983,0.00014844,2]
[355200424,1741003285835,25149.7,0.000148,3]
[355200425,1741003314423,1000.0,0.00013996,2]
[355200426,1741003336212,1089.79,0.00012078,2]
[355200427,1741003336417,1089.79,0.00014342,2]
[355200429,1741003341124,1148.27842,0.0001476,2]
[355200430,1741003341192,1148.27842,0.0001483,2]
[355200431,1741003370301,209.64347156,0.00014791,2]
[355200432,1741003491068,250.0,0.00013997,2]
[355200433,1741003507848,155.0,0.000148,3]
[355200434,1741003613595,156.94,0.00013988,2]
[355200435,1741003646303,1148.27843,0.0001479,2]
[355200436,1741003646377,1148.27842,0.0001475,2]
[355200437,1741003699290,169.71,0.00014417,2]
[355200438,1741003741908,23900.0,0.00013997,2]
[355200439,1741003759024,155.33313983,0.00014787,2]
[355200440,1741003805434,18942.52,0.00014,2]
[355200441,1741003807521,155.0,0.000148,3]
[355200446,1741003831738,-300.0,0.00014886,2]
[355200447,1741003831748,-500.0,0.00014886,2]
[355200448,1741003831757,-614.14,0.00014886,2]
[355200449,1741003831767,-1000.0,0.00014886,2]
[355200450,1741003831777,-550.0,0.00014887,2]
[355200451,1741003831787,-500.0,0.00014887,2]
[355200452,1741003831796,-633.5,0.00014887,2]
[355200453,1741003831806,-500.0,0.00014887,2]
[355200454,1741003831816,-500.0,0.00014887,2]
[355200455,1741003831826,-361.19024779,0.00014887,2]
[355200456,1741003831835,-500.0,0.00014887,2]
[355200457,1741003831845,-500.0,0.00014887,2]
[355200458,1741003831854,-500.0,0.00014887,2]
[355200459,1741003831864,-500.0,0.00014887,2]
[355200460,1741003831874,-559.43189169,0.00014887,2]
[355200461,1741003831883,-500.0,0.00014887,2]
[355200462,1741003831893,-500.0,0.00014887,2]
[355200463,1741003831903,-500.0,0.00014887,2]
[355200464,1741003831913,-500.0,0.00014887,2]
[355200465,1741003831922,-500.0,0.00014887,2]
[355200466,1741003831932,-500.0,0.00014887,2]
[355200467,1741003831942,-225.63278592,0.00014887,2]
[355200468,1741003831952,-213.11279359,0.00014887,2]
[355200469,1741003831961,-500.0,0.00014887,2]
[355200470,1741003831972,-500.0,0.00014887,2]
[355200471,1741003831982,-500.0,0.00014887,2]
[355200472,1741003831991,-500.0,0.00014887,2]
[355200473,1741003832001,-500.0,0.00014887,2]
[355200474,1741003832010,-283.833041,0.00014887,2]
[355200475,1741003832027,-457.22801326,0.00014887,2]
[355200476,1741003832036,-500.0,0.00014887,2]
[355200477,1741003832046,-182.67680995,0.00014887,2]
[355200478,1741003832055,-500.0,0.00014887,2]
[355200479,1741003832065,-471.343594,0.00014887,2]
[355200480,1741003832075,-500.0,0.00014887,2]
[355200481,1741003832085,-500.0,0.00014887,2]
[355200482,1741003832095,-500.0,0.00014887,2]
[355200483,1741003832105,-570.47,0.00014887,2]
[355200484,1741003832115,-500.0,0.00014887,2]
[355200485,1741003832124,-500.0,0.00014887,2]
[355200486,1741003832134,-500.0,0.00014887,2]
[355200487,1741003832144,-500.0,0.00014887,2]
[355200488,1741003832154,-205.1311425,0.00014887,2]
[355200489,1741003832163,-500.0,0.00014887,2]
[355200490,1741003832173,-485.28,0.00014887,2]
[355200491,1741003832183,-500.0,0.00014887,2]
[355200492,1741003832192,-500.0,0.00014887,2]
[355200493,1741003832201,-500.0,0.00014887,2]
[355200494,1741003832210,-234.69,0.00014887,2]
[355200495,1741003832221,-500.0,0.00014887,2]
[355200496,1741003832231,-482.3396803,0.00014887,2]
[355200497,1741003832244,-17.6603197,0.00014887,2]
[355200498,1741003832254,-500.0,0.00014887,2]
[355200499,1741003832264,-278.52385815,0.00014887,2]
[355200500,1741003832273,-500.0,0.00014887,2]
[355200501,1741003832287,-500.0,0.00014887,2]
[355200502,1741003832305,-503.25,0.00014887,2]
[355200503,1741003832325,-500.0,0.00014887,2]
[355200504,1741003832336,-500.0,0.00014887,2]
[355200505,1741003832347,-500.0,0.00014887,2]
[355200506,1741003832357,-511.50061194,0.00014887,2]
[355200507,1741003832367,-231.90545513,0.00014887,2]
[355200508,1741003832378,-414.36960692,0.00014887,2]
[355200509,1741003832389,-500.0,0.00014887,2]
[355200510,1741003832401,-500.0,0.00014887,2]
[355200511,1741003832415,-142.79014806,0.00014887,2]
[355200512,1741003832428,-372.87985194,0.00014887,2]
[355200513,1741003832439,-806.38,0.00014887,2]
[355200514,1741003832452,-500.0,0.00014887,2]
[355200515,1741003832462,-500.0,0.00014887,2]
[355200516,1741003832474,-345.19102647,0.00014887,2]
[355200517,1741003832484,-525.58170673,0.00014887,2]
[355200518,1741003832494,-642.29,0.00014887,2]
[355200519,1741003832504,-500.0,0.00014887,2]
[355200520,1741003832514,-687.67741486,0.00014887,2]
[355200521,1741003832525,-98.55258514,0.00014887,2]
[355200522,1741003832535,-554.86,0.00014887,2]
[355200523,1741003832545,-500.0,0.00014887,2]
[355200524,1741003832554,-1797.29039478,0.00014887,2]
[355200525,1741003832572,-395.39999862,0.00014887,2]
[355200526,1741003832584,-1273.0,0.00014887,2]
[355200527,1741003832596,-2679.82754,0.00014887,2]
[355200528,1741003832611,-1720.4220666,0.00014887,2]
[355200529,1741003832620,-500.0,0.00014887,2]
[355200530,1741003832630,-500.0,0.00014887,2]
[355200531,1741003832642,-1235.94,0.00014887,2]
[355200532,1741003832652,-667.78,0.00014887,2]
[355200533,1741003832662,-627.66,0.00014887,2]
[355200534,1741003832671,-500.0,0.00014887,2]
[355200535,1741003832681,-500.0,0.00014887,2]
[355200536,1741003832691,-7499.34,0.00014887,2]
[355200537,1741003832700,-500.0,0.00014887,2]
[355200538,1741003832710,-500.0,0.00014887,2]
[355200539,1741003832722,-500.0,0.00014887,2]
[355200540,1741003832731,-500.0,0.00014887,2]
[355200541,1741003832741,-518.17269144,0.00014887,2]
[355200542,1741003832751,-500.0,0.00014887,2]
[355200543,1741003832760,-500.0,0.00014887,2]
[355200544,1741003832769,-509.58,0.00014887,2]
[355200545,1741003832779,-500.0,0.00014887,2]
[355200546,1741003832788,-500.0,0.00014887,2]
[355200547,1741003832798,-500.0,0.00014887,2]
[355200548,1741003832809,-500.0,0.00014887,2]
[355200549,1741003832819,-662.27,0.00014887,2]
[355200550,1741003832830,-500.0,0.00014887,2]
[355200551,1741003832839,-500.0,0.00014887,2]
[355200552,1741003832849,-13905.42,0.00014887,2]
[355200553,1741003832859,-500.0,0.00014887,2]
[355200554,1741003832868,-500.0,0.00014887,2]
[355200555,1741003832880,-170.38447685,0.00014887,2]